[Event "*** SCC Grand Prix: Titled Tuesday Blitz"]
[Site "Chess.com"]
[Date "2020.06.02"]
[Round "4"]
[White "Dr-Bassem"]
[Black "m_ezat"]
[Result "1-0"]
[WhiteElo "2800"]
[BlackElo "2546"]
[TimeControl "180+1"]
[EndTime "10:40:57 PDT"]
[Termination "Dr-Bassem won by checkmate"]

1. e4 {[%clk 0:03:00.6]} 1... c6 {[%clk 0:02:59.5]} 2. d4 {[%clk 0:03:01]} 2...
d5 {[%clk 0:03:00.1]} 3. exd5 {[%clk 0:03:01.7]} 3... cxd5 {[%clk 0:03:00.1]} 4.
c4 {[%clk 0:03:02.6]} 4... Nf6 {[%clk 0:03:00.2]} 5. Nc3 {[%clk 0:03:03.5]} 5...
g6 {[%clk 0:02:57.1]} 6. Qb3 {[%clk 0:03:02.7]} 6... Bg7 {[%clk 0:02:57.2]} 7.
cxd5 {[%clk 0:03:03.1]} 7... O-O {[%clk 0:02:56.1]} 8. Be2 {[%clk 0:03:03.7]}
8... Nbd7 {[%clk 0:02:54.8]} 9. Bf3 {[%clk 0:03:03.5]} 9... Nb6 {[%clk
0:02:55.3]} 10. a4 {[%clk 0:03:03.8]} 10... a5 {[%clk 0:02:53.8]} 11. Nge2
{[%clk 0:03:03.3]} 11... Qd6 {[%clk 0:02:53.9]} 12. O-O {[%clk 0:02:48.5]} 12...
Qb4 {[%clk 0:02:54.3]} 13. Ra3 {[%clk 0:02:46.1]} 13... Bf5 {[%clk 0:02:24.9]}
14. Bf4 {[%clk 0:02:16]} 14... Rfc8 {[%clk 0:02:11.4]} 15. h3 {[%clk 0:01:56.7]}
15... h6 {[%clk 0:02:10.8]} 16. Be5 {[%clk 0:01:44.7]} 16... Nc4 {[%clk
0:01:45.9]} 17. Na2 {[%clk 0:01:39.4]} 17... Qxb3 {[%clk 0:01:45.5]} 18. Rxb3
{[%clk 0:01:39.7]} 18... Nd2 {[%clk 0:01:45.8]} 19. Rxb7 {[%clk 0:01:36.4]}
19... Nxf1 {[%clk 0:01:44.5]} 20. Kxf1 {[%clk 0:01:36.4]} 20... Ne4 {[%clk
0:01:24.7]} 21. g4 {[%clk 0:00:48.9]} 21... Nd2+ {[%clk 0:01:23.8]} 22. Kg2
{[%clk 0:00:48.1]} 22... Bd3 {[%clk 0:00:46.8]} 23. Nec3 {[%clk 0:00:39.7]}
23... Bf1+ {[%clk 0:00:28.2]} 24. Kg3 {[%clk 0:00:39.1]} 24... Nxf3 {[%clk
0:00:26.7]} 25. Kxf3 {[%clk 0:00:40]} 25... Bxh3 {[%clk 0:00:26.5]} 26. Rxe7
{[%clk 0:00:34.8]} 26... Bf8 {[%clk 0:00:25.7]} 27. Rb7 {[%clk 0:00:32.2]} 27...
Bf1 {[%clk 0:00:24.3]} 28. d6 {[%clk 0:00:27.1]} 28... Rcb8 {[%clk 0:00:20.4]}
29. Rxb8 {[%clk 0:00:15.1]} 29... Rxb8 {[%clk 0:00:20.1]} 30. d7 {[%clk
0:00:12.2]} 30... Rd8 {[%clk 0:00:19.4]} 31. Nd5 {[%clk 0:00:11.2]} 31... f5
{[%clk 0:00:19.6]} 32. Bc7 {[%clk 0:00:10]} 32... Bc4 {[%clk 0:00:18.4]} 33.
Nf6+ {[%clk 0:00:09.3]} 33... Kf7 {[%clk 0:00:18]} 34. Bxd8 {[%clk 0:00:08.6]}
34... Bxa2 {[%clk 0:00:17.3]} 35. Bxa5 {[%clk 0:00:08.7]} 35... Be7 {[%clk
0:00:13.8]} 36. d8=Q {[%clk 0:00:08.9]} 36... Bxd8 {[%clk 0:00:14.1]} 37. Bxd8
{[%clk 0:00:09.8]} 37... fxg4+ {[%clk 0:00:12.9]} 38. Nxg4 {[%clk 0:00:09.1]}
38... Bb3 {[%clk 0:00:12]} 39. a5 {[%clk 0:00:07.5]} 39... Ke8 {[%clk
0:00:11.7]} 40. Bb6 {[%clk 0:00:06.7]} 40... g5 {[%clk 0:00:07.7]} 41. Nxh6
{[%clk 0:00:06.4]} 41... Kd7 {[%clk 0:00:03.9]} 42. Nf7 {[%clk 0:00:05.8]} 42...
Ke6 {[%clk 0:00:04.7]} 43. Nxg5+ {[%clk 0:00:05.7]} 43... Kf5 {[%clk 0:00:05.6]}
44. Nh3 {[%clk 0:00:05]} 44... Bd5+ {[%clk 0:00:05]} 45. Ke3 {[%clk 0:00:05.1]}
45... Kg4 {[%clk 0:00:05.7]} 46. Nf4 {[%clk 0:00:06]} 46... Bb7 {[%clk
0:00:06.2]} 47. d5 {[%clk 0:00:05.2]} 47... Kf5 {[%clk 0:00:06.8]} 48. b4 {[%clk
0:00:06.1]} 48... Kf6 {[%clk 0:00:07.4]} 49. Nd3 {[%clk 0:00:06.3]} 49... Ke7
{[%clk 0:00:07]} 50. Kd4 {[%clk 0:00:06.1]} 50... Kd6 {[%clk 0:00:07.1]} 51.
Bc5+ {[%clk 0:00:06.7]} 51... Kd7 {[%clk 0:00:06.4]} 52. Ne5+ {[%clk 0:00:07.6]}
52... Kc7 {[%clk 0:00:07.1]} 53. d6+ {[%clk 0:00:08.1]} 53... Kd8 {[%clk
0:00:07.8]} 54. Bb6+ {[%clk 0:00:08.2]} 54... Ke8 {[%clk 0:00:07.3]} 55. d7+
{[%clk 0:00:09.1]} 55... Ke7 {[%clk 0:00:07.7]} 56. d8=Q+ {[%clk 0:00:09.8]}
56... Ke6 {[%clk 0:00:08.4]} 57. Qd7+ {[%clk 0:00:09]} 57... Kf6 {[%clk
0:00:08.6]} 58. Qf7+ {[%clk 0:00:09.5]} 58... Kg5 {[%clk 0:00:08.7]} 59. Bd8+
{[%clk 0:00:07.6]} 59... Kh6 {[%clk 0:00:07.8]} 60. Ng4# {[%clk 0:00:04.8]} 1-0

[Event "*** SCC Grand Prix: Titled Tuesday Blitz"]
[Site "Chess.com"]
[Date "2020.06.02"]
[Round "4"]
[White "malandragem"]
[Black "jb2mix"]
[Result "0-1"]
[WhiteElo "2476"]
[BlackElo "2712"]
[TimeControl "180+1"]
[EndTime "10:40:57 PDT"]
[Termination "jb2mix won by checkmate"]

1. a3 {[%clk 0:03:00.9]} 1... e5 {[%clk 0:02:59.7]} 2. e4 {[%clk 0:03:00.4]}
2... Nf6 {[%clk 0:02:59.5]} 3. Nc3 {[%clk 0:03:00.6]} 3... Nc6 {[%clk
0:02:54.7]} 4. Bc4 {[%clk 0:03:00.6]} 4... Nxe4 {[%clk 0:02:54.4]} 5. Nxe4
{[%clk 0:02:59.7]} 5... d5 {[%clk 0:02:54.7]} 6. Bd3 {[%clk 0:03:00.1]} 6...
dxe4 {[%clk 0:02:54.3]} 7. Bxe4 {[%clk 0:03:01]} 7... Bc5 {[%clk 0:02:54.4]} 8.
d3 {[%clk 0:02:51.7]} 8... f5 {[%clk 0:02:51.7]} 9. Bxc6+ {[%clk 0:02:34.9]}
9... bxc6 {[%clk 0:02:51.5]} 10. Qh5+ {[%clk 0:02:27.7]} 10... g6 {[%clk
0:02:48.4]} 11. Qh6 {[%clk 0:02:27.9]} 11... Qf6 {[%clk 0:02:13.7]} 12. Bg5
{[%clk 0:01:49.5]} 12... Qf7 {[%clk 0:02:13.5]} 13. Nf3 {[%clk 0:01:48.8]} 13...
Bd6 {[%clk 0:02:10.3]} 14. O-O {[%clk 0:01:42.9]} 14... Qf8 {[%clk 0:01:57.8]}
15. Rfe1 {[%clk 0:01:27.7]} 15... Qxh6 {[%clk 0:01:37]} 16. Bxh6 {[%clk
0:01:28.6]} 16... Kf7 {[%clk 0:01:02]} 17. Nxe5+ {[%clk 0:01:17.8]} 17... Kf6
{[%clk 0:01:02.4]} 18. f4 {[%clk 0:01:07]} 18... Bc5+ {[%clk 0:00:53.7]} 19. Kh1
{[%clk 0:01:03.3]} 19... Rb8 {[%clk 0:00:54.1]} 20. Rab1 {[%clk 0:00:57.8]}
20... Rb6 {[%clk 0:00:50]} 21. c3 {[%clk 0:00:54.3]} 21... Re8 {[%clk
0:00:38.9]} 22. Bg5+ {[%clk 0:00:53.3]} 22... Kg7 {[%clk 0:00:38.8]} 23. b4
{[%clk 0:00:43.2]} 23... Bf8 {[%clk 0:00:36.7]} 24. Nc4 {[%clk 0:00:35.1]} 24...
Rxe1+ {[%clk 0:00:37.6]} 25. Rxe1 {[%clk 0:00:35.7]} 25... Rb8 {[%clk
0:00:38.4]} 26. Be7 {[%clk 0:00:33.9]} 26... Ba6 {[%clk 0:00:31.7]} 27. Bxf8+
{[%clk 0:00:33.5]} 27... Rxf8 {[%clk 0:00:30.9]} 28. Re7+ {[%clk 0:00:32.8]}
28... Kf6 {[%clk 0:00:31.1]} 29. Rxc7 {[%clk 0:00:26.7]} 29... Bxc4 {[%clk
0:00:31.6]} 30. dxc4 {[%clk 0:00:27.6]} 30... Rd8 {[%clk 0:00:31.4]} 31. h3
{[%clk 0:00:27.5]} 31... Rd6 {[%clk 0:00:28.5]} 32. c5 {[%clk 0:00:27.3]} 32...
Re6 {[%clk 0:00:26.7]} 33. Rxa7 {[%clk 0:00:26.5]} 33... Re3 {[%clk 0:00:26.8]}
34. a4 {[%clk 0:00:25.4]} 34... Ke6 {[%clk 0:00:24.4]} 35. Rxh7 {[%clk
0:00:21.8]} 35... Rxc3 {[%clk 0:00:23.7]} 36. Rg7 {[%clk 0:00:22.1]} 36... Kf6
{[%clk 0:00:16.3]} 37. Rc7 {[%clk 0:00:21.8]} 37... Rc4 {[%clk 0:00:15.8]} 38.
Rxc6+ {[%clk 0:00:22.4]} 38... Kf7 {[%clk 0:00:16.3]} 39. Rb6 {[%clk 0:00:23.2]}
39... Rxf4 {[%clk 0:00:16.5]} 40. a5 {[%clk 0:00:23.8]} 40... Rf1+ {[%clk
0:00:16.4]} 41. Kh2 {[%clk 0:00:23.8]} 41... f4 {[%clk 0:00:16.9]} 42. a6 {[%clk
0:00:24.7]} 42... Ra1 {[%clk 0:00:14.4]} 43. Rb7+ {[%clk 0:00:23.7]} 43... Ke6
{[%clk 0:00:14.2]} 44. a7 {[%clk 0:00:24.6]} 44... Ra2 {[%clk 0:00:14.2]} 45. b5
{[%clk 0:00:17.9]} 45... f3 {[%clk 0:00:14.1]} 46. b6 {[%clk 0:00:17.4]} 46...
f2 {[%clk 0:00:12.2]} 47. a8=Q {[%clk 0:00:04.9]} 47... Rxa8 {[%clk 0:00:11.4]}
48. Ra7 {[%clk 0:00:05.3]} 48... Rf8 {[%clk 0:00:05.4]} 49. b7 {[%clk
0:00:02.8]} 49... f1=Q {[%clk 0:00:05.2]} 50. Ra8 {[%clk 0:00:03.2]} 50... Qf4+
{[%clk 0:00:05.1]} 51. Kh1 {[%clk 0:00:03.6]} 51... Qc1+ {[%clk 0:00:05.4]} 52.
Kh2 {[%clk 0:00:03.7]} 52... Qf4+ {[%clk 0:00:04.3]} 53. Kh1 {[%clk 0:00:03.8]}
53... Kd7 {[%clk 0:00:03.8]} 54. Rxf8 {[%clk 0:00:03.6]} 54... Qxf8 {[%clk
0:00:04.5]} 55. c6+ {[%clk 0:00:04.5]} 55... Kxc6 {[%clk 0:00:04.8]} 56. Kh2
{[%clk 0:00:05.4]} 56... Qb8+ {[%clk 0:00:04.8]} 57. g3 {[%clk 0:00:04.1]} 57...
Qxb7 {[%clk 0:00:05.7]} 58. Kg2 {[%clk 0:00:04.7]} 58... Kd5 {[%clk 0:00:06.4]}
59. h4 {[%clk 0:00:05.6]} 59... Ke5+ {[%clk 0:00:06.9]} 60. Kh3 {[%clk
0:00:06.5]} 60... Qd7+ {[%clk 0:00:07]} 61. Kg2 {[%clk 0:00:06.7]} 61... Qd1
{[%clk 0:00:07]} 62. g4 {[%clk 0:00:07.6]} 62... Qxg4+ {[%clk 0:00:06.8]} 63.
Kh2 {[%clk 0:00:08.2]} 63... Qxh4+ {[%clk 0:00:07]} 64. Kg2 {[%clk 0:00:09.1]}
64... Qf4 {[%clk 0:00:07.7]} 65. Kg1 {[%clk 0:00:09.2]} 65... Qd2 {[%clk
0:00:08.2]} 66. Kh1 {[%clk 0:00:10.1]} 66... Kf4 {[%clk 0:00:08.9]} 67. Kg1
{[%clk 0:00:11]} 67... Kf3 {[%clk 0:00:09.6]} 68. Kf1 {[%clk 0:00:11.9]} 68...
Qf2# {[%clk 0:00:10.1]} 0-1

[Event "*** SCC Grand Prix: Titled Tuesday Blitz"]
[Site "Chess.com"]
[Date "2020.06.02"]
[Round "4"]
[White "karinachess1"]
[Black "attack2mateU"]
[Result "0-1"]
[WhiteElo "2504"]
[BlackElo "2716"]
[TimeControl "180+1"]
[EndTime "10:40:57 PDT"]
[Termination "attack2mateU won by checkmate"]

1. e4 {[%clk 0:02:58.3]} 1... c5 {[%clk 0:02:51.7]} 2. Nf3 {[%clk 0:02:57.8]}
2... d6 {[%clk 0:02:52.2]} 3. d4 {[%clk 0:02:57.8]} 3... cxd4 {[%clk 0:02:53.1]}
4. Nxd4 {[%clk 0:02:58.4]} 4... Nf6 {[%clk 0:02:52.9]} 5. Nc3 {[%clk 0:02:58.5]}
5... a6 {[%clk 0:02:53.3]} 6. Be3 {[%clk 0:02:57.8]} 6... e5 {[%clk 0:02:51.4]}
7. Nf3 {[%clk 0:02:57.9]} 7... Be7 {[%clk 0:02:49.3]} 8. Bc4 {[%clk 0:02:57.5]}
8... O-O {[%clk 0:02:49.7]} 9. O-O {[%clk 0:02:55.1]} 9... Be6 {[%clk
0:02:49.4]} 10. Bb3 {[%clk 0:02:53.6]} 10... Qc7 {[%clk 0:02:47.5]} 11. Bg5
{[%clk 0:02:50]} 11... Nbd7 {[%clk 0:02:46.5]} 12. Qe2 {[%clk 0:02:18.5]} 12...
Rfc8 {[%clk 0:02:35.5]} 13. Rad1 {[%clk 0:02:08.5]} 13... b5 {[%clk 0:02:25.2]}
14. Rd2 {[%clk 0:01:40.5]} 14... Nb6 {[%clk 0:02:18]} 15. Bxf6 {[%clk
0:01:34.7]} 15... Bxf6 {[%clk 0:02:17.7]} 16. Rfd1 {[%clk 0:01:34.2]} 16... Be7
{[%clk 0:02:17.9]} 17. Ne1 {[%clk 0:01:17]} 17... Nc4 {[%clk 0:02:03.3]} 18.
Bxc4 {[%clk 0:01:15.7]} 18... Qxc4 {[%clk 0:02:04.2]} 19. Qe3 {[%clk 0:00:51.8]}
19... h6 {[%clk 0:01:59]} 20. Nf3 {[%clk 0:00:39.7]} 20... b4 {[%clk 0:01:51.8]}
21. Na4 {[%clk 0:00:24.3]} 21... Rab8 {[%clk 0:01:14.3]} 22. Nb6 {[%clk
0:00:21.9]} 22... Rxb6 {[%clk 0:01:14.7]} 23. Qxb6 {[%clk 0:00:22.8]} 23... Qxe4
{[%clk 0:01:14.9]} 24. Qxa6 {[%clk 0:00:21.7]} 24... Ra8 {[%clk 0:01:14.4]} 25.
Qd3 {[%clk 0:00:20.4]} 25... Qxd3 {[%clk 0:01:11.6]} 26. cxd3 {[%clk 0:00:21.3]}
26... Rxa2 {[%clk 0:01:11.2]} 27. Rc1 {[%clk 0:00:21.7]} 27... g5 {[%clk
0:00:51.4]} 28. h3 {[%clk 0:00:21]} 28... h5 {[%clk 0:00:51.2]} 29. Rc7 {[%clk
0:00:20.6]} 29... Bf6 {[%clk 0:00:50.5]} 30. Rb7 {[%clk 0:00:20]} 30... g4
{[%clk 0:00:49.5]} 31. hxg4 {[%clk 0:00:19.4]} 31... hxg4 {[%clk 0:00:50.4]} 32.
Nh2 {[%clk 0:00:17.7]} 32... Ra1+ {[%clk 0:00:44.7]} 33. Nf1 {[%clk 0:00:17.7]}
33... b3 {[%clk 0:00:44.7]} 34. g3 {[%clk 0:00:14.3]} 34... Kg7 {[%clk
0:00:43.6]} 35. Rb5 {[%clk 0:00:14]} 35... Bg5 {[%clk 0:00:42.3]} 36. Re2 {[%clk
0:00:13.3]} 36... Rd1 {[%clk 0:00:42]} 37. Kg2 {[%clk 0:00:10.7]} 37... Rxd3
{[%clk 0:00:42.5]} 38. Ne3 {[%clk 0:00:11.1]} 38... Bxe3 {[%clk 0:00:34.9]} 39.
fxe3 {[%clk 0:00:11.2]} 39... Bd5+ {[%clk 0:00:29.5]} 40. Kf2 {[%clk 0:00:11.1]}
40... Be4 {[%clk 0:00:28.5]} 41. Rb4 {[%clk 0:00:10.4]} 41... d5 {[%clk
0:00:27.1]} 42. Rb6 {[%clk 0:00:08]} 42... f6 {[%clk 0:00:27]} 43. Rb7+ {[%clk
0:00:07.9]} 43... Kg6 {[%clk 0:00:27.6]} 44. Rb6 {[%clk 0:00:08.7]} 44... Kf5
{[%clk 0:00:27.5]} 45. Rb5 {[%clk 0:00:08.9]} 45... Kg5 {[%clk 0:00:14.1]} 46.
Rb4 {[%clk 0:00:09]} 46... Bf3 {[%clk 0:00:10.9]} 47. Rb5 {[%clk 0:00:03.1]}
47... Bxe2 {[%clk 0:00:10.5]} 48. Kxe2 {[%clk 0:00:04]} 48... e4 {[%clk
0:00:09.7]} 49. Rb4 {[%clk 0:00:04.3]} 49... Kf5 {[%clk 0:00:09.7]} 50. Rb6
{[%clk 0:00:04.6]} 50... Ke5 {[%clk 0:00:09.4]} 51. Rb8 {[%clk 0:00:04.4]} 51...
d4 {[%clk 0:00:08.4]} 52. Rb5+ {[%clk 0:00:04]} 52... Ke6 {[%clk 0:00:08.1]} 53.
exd4 {[%clk 0:00:04.5]} 53... Rxg3 {[%clk 0:00:07.8]} 54. Rb6+ {[%clk
0:00:01.1]} 54... Kf5 {[%clk 0:00:07.4]} 55. Rb5+ {[%clk 0:00:01]} 55... Kf4
{[%clk 0:00:07.8]} 56. d5 {[%clk 0:00:01.1]} 56... Rg2+ {[%clk 0:00:07.6]} 57.
Kd1 {[%clk 0:00:01.4]} 57... Rxb2 {[%clk 0:00:08.3]} 58. d6 {[%clk 0:00:01.8]}
58... e3 {[%clk 0:00:08.4]} 59. Rd5 {[%clk 0:00:01.9]} 59... Rb1+ {[%clk
0:00:06.6]} 60. Ke2 {[%clk 0:00:02.1]} 60... b2 {[%clk 0:00:06.7]} 61. d7 {[%clk
0:00:01.7]} 61... Re1+ {[%clk 0:00:06.4]} 62. Kxe1 {[%clk 0:00:02.6]} 62...
b1=Q+ {[%clk 0:00:06.8]} 63. Rd1 {[%clk 0:00:03.4]} 63... Qb4+ {[%clk
0:00:06.2]} 64. Ke2 {[%clk 0:00:04]} 64... Qb2+ {[%clk 0:00:06.1]} 65. Kd3
{[%clk 0:00:02.8]} 65... Qb3+ {[%clk 0:00:06.7]} 66. Ke2 {[%clk 0:00:03.2]}
66... Qc2+ {[%clk 0:00:07.3]} 67. Ke1 {[%clk 0:00:02]} 67... Qf2# {[%clk
0:00:07.7]} 0-1

[Event "*** SCC Grand Prix: Titled Tuesday Blitz"]
[Site "Chess.com"]
[Date "2020.06.02"]
[Round "4"]
[White "AnthonyWirig"]
[Black "woodhy"]
[Result "1-0"]
[WhiteElo "2706"]
[BlackElo "2452"]
[TimeControl "180+1"]
[EndTime "10:40:58 PDT"]
[Termination "AnthonyWirig won by checkmate"]

1. d4 {[%clk 0:03:00.9]} 1... Nf6 {[%clk 0:02:58.5]} 2. Bg5 {[%clk 0:02:59.6]}
2... Ne4 {[%clk 0:02:55.2]} 3. Bf4 {[%clk 0:02:59.5]} 3... c5 {[%clk 0:02:55.5]}
4. f3 {[%clk 0:02:57.9]} 4... Nf6 {[%clk 0:02:54.1]} 5. dxc5 {[%clk 0:02:56]}
5... Qa5+ {[%clk 0:02:50.3]} 6. Qd2 {[%clk 0:02:54.3]} 6... Qxc5 {[%clk
0:02:49.6]} 7. e4 {[%clk 0:02:44.6]} 7... d6 {[%clk 0:02:29]} 8. Nc3 {[%clk
0:02:43.1]} 8... a6 {[%clk 0:02:28.7]} 9. Nge2 {[%clk 0:02:39]} 9... g6 {[%clk
0:02:27.4]} 10. O-O-O {[%clk 0:02:30.8]} 10... Nc6 {[%clk 0:02:12.4]} 11. Kb1
{[%clk 0:02:22.5]} 11... Bg7 {[%clk 0:02:08]} 12. Bh6 {[%clk 0:02:18.7]} 12...
O-O {[%clk 0:02:05.6]} 13. g4 {[%clk 0:02:14.8]} 13... Be6 {[%clk 0:02:01.9]}
14. Bxg7 {[%clk 0:02:07.4]} 14... Kxg7 {[%clk 0:02:00.3]} 15. Nf4 {[%clk
0:02:07.8]} 15... b5 {[%clk 0:01:48.1]} 16. g5 {[%clk 0:01:57.4]} 16... Nd7
{[%clk 0:01:39.1]} 17. h4 {[%clk 0:01:55.9]} 17... Nde5 {[%clk 0:01:28.2]} 18.
Be2 {[%clk 0:01:46.3]} 18... Nc4 {[%clk 0:01:25.3]} 19. Bxc4 {[%clk 0:01:40.6]}
19... Qxc4 {[%clk 0:01:16.4]} 20. h5 {[%clk 0:01:29.7]} 20... Ne5 {[%clk
0:01:02.7]} 21. Nxe6+ {[%clk 0:00:44.7]} 21... fxe6 {[%clk 0:00:58.7]} 22. f4
{[%clk 0:00:45.3]} 22... b4 {[%clk 0:00:47.8]} 23. Na4 {[%clk 0:00:30.7]} 23...
Nf7 {[%clk 0:00:17.2]} 24. Nb6 {[%clk 0:00:23.8]} 24... Qxe4 {[%clk 0:00:16.6]}
25. Nxa8 {[%clk 0:00:24]} 25... Rxa8 {[%clk 0:00:17.5]} 26. h6+ {[%clk 0:00:22]}
26... Kg8 {[%clk 0:00:17]} 27. Rhe1 {[%clk 0:00:22.9]} 27... Qf5 {[%clk
0:00:16.8]} 28. Qxb4 {[%clk 0:00:22]} 28... Rc8 {[%clk 0:00:16.5]} 29. Re2
{[%clk 0:00:19.1]} 29... e5 {[%clk 0:00:16.1]} 30. fxe5 {[%clk 0:00:12.9]} 30...
Nxe5 {[%clk 0:00:17]} 31. Qb3+ {[%clk 0:00:11.8]} 31... Qf7 {[%clk 0:00:16]} 32.
Qxf7+ {[%clk 0:00:10.6]} 32... Nxf7 {[%clk 0:00:15.7]} 33. Rf1 {[%clk
0:00:11.5]} 33... Nxg5 {[%clk 0:00:15.6]} 34. Rxe7 {[%clk 0:00:11.2]} 34... d5
{[%clk 0:00:13.8]} 35. b3 {[%clk 0:00:10.3]} 35... d4 {[%clk 0:00:13.9]} 36.
Rg7+ {[%clk 0:00:09.3]} 36... Kh8 {[%clk 0:00:13.7]} 37. Re1 {[%clk 0:00:08.3]}
37... d3 {[%clk 0:00:13.4]} 38. cxd3 {[%clk 0:00:06.9]} 38... Nf3 {[%clk
0:00:13.8]} 39. Ree7 {[%clk 0:00:05.9]} 39... Ng5 {[%clk 0:00:13.9]} 40. Rc7
{[%clk 0:00:05.7]} 40... Rd8 {[%clk 0:00:12.7]} 41. d4 {[%clk 0:00:05.9]} 41...
Ne6 {[%clk 0:00:10.8]} 42. Rxh7+ {[%clk 0:00:05.8]} 42... Kg8 {[%clk 0:00:11]}
43. Rcd7 {[%clk 0:00:05.3]} 43... Rf8 {[%clk 0:00:09.6]} 44. Rhe7 {[%clk
0:00:05.4]} 44... Rf1+ {[%clk 0:00:07.8]} 45. Kb2 {[%clk 0:00:05]} 45... Rf2+
{[%clk 0:00:08.7]} 46. Ka3 {[%clk 0:00:05.3]} 46... Nf8 {[%clk 0:00:09.1]} 47.
Rg7+ {[%clk 0:00:05]} 47... Kh8 {[%clk 0:00:09.5]} 48. Rdf7 {[%clk 0:00:05.4]}
48... Rf5 {[%clk 0:00:09.7]} 49. Rxf5 {[%clk 0:00:04.8]} 49... gxf5 {[%clk
0:00:10.3]} 50. Rf7 {[%clk 0:00:05.3]} 50... Ne6 {[%clk 0:00:10.6]} 51. Rxf5
{[%clk 0:00:05.4]} 51... Nxd4 {[%clk 0:00:10.7]} 52. Rf7 {[%clk 0:00:05.7]}
52... Nb5+ {[%clk 0:00:11.6]} 53. Kb4 {[%clk 0:00:05.7]} 53... Nd4 {[%clk
0:00:11.7]} 54. Rd7 {[%clk 0:00:05.7]} 54... Nc6+ {[%clk 0:00:11.8]} 55. Kc5
{[%clk 0:00:06.3]} 55... Ne5 {[%clk 0:00:12.7]} 56. Re7 {[%clk 0:00:06.2]} 56...
Nd3+ {[%clk 0:00:12.4]} 57. Kb6 {[%clk 0:00:06.7]} 57... Nb4 {[%clk 0:00:13.3]}
58. Re2 {[%clk 0:00:06.2]} 58... Nd3 {[%clk 0:00:12.3]} 59. Kxa6 {[%clk
0:00:06]} 59... Nc1 {[%clk 0:00:13.2]} 60. Rc2 {[%clk 0:00:06.1]} 60... Nd3
{[%clk 0:00:13.2]} 61. Rc4 {[%clk 0:00:06.7]} 61... Ne5 {[%clk 0:00:13]} 62. Kb5
{[%clk 0:00:07.6]} 62... Kh7 {[%clk 0:00:11.5]} 63. a4 {[%clk 0:00:07.8]} 63...
Kxh6 {[%clk 0:00:12.4]} 64. Rc5 {[%clk 0:00:08.1]} 64... Ng6 {[%clk 0:00:13.3]}
65. a5 {[%clk 0:00:08.8]} 65... Kg7 {[%clk 0:00:14.1]} 66. a6 {[%clk 0:00:09.7]}
66... Kg8 {[%clk 0:00:14.7]} 67. Rc6 {[%clk 0:00:10.6]} 67... Kh7 {[%clk
0:00:15.1]} 68. a7 {[%clk 0:00:11.5]} 68... Kg7 {[%clk 0:00:15.4]} 69. a8=Q
{[%clk 0:00:12]} 69... Kh7 {[%clk 0:00:15.8]} 70. Qb7+ {[%clk 0:00:12.4]} 70...
Kh8 {[%clk 0:00:15.8]} 71. Rc8+ {[%clk 0:00:11]} 71... Nf8 {[%clk 0:00:15]} 72.
Rxf8# {[%clk 0:00:10.7]} 1-0

[Event "*** SCC Grand Prix: Titled Tuesday Blitz"]
[Site "Chess.com"]
[Date "2020.06.02"]
[Round "4"]
[White "Susal_De_Silva"]
[Black "olksuna"]
[Result "1-0"]
[WhiteElo "2358"]
[BlackElo "2581"]
[TimeControl "180+1"]
[EndTime "10:40:58 PDT"]
[Termination "Susal_De_Silva won by resignation"]

1. e4 {[%clk 0:03:00.9]} 1... c5 {[%clk 0:02:59.3]} 2. Nf3 {[%clk 0:03:01.2]}
2... Nc6 {[%clk 0:02:59.8]} 3. Bb5 {[%clk 0:03:01.3]} 3... g6 {[%clk 0:02:59.7]}
4. Bxc6 {[%clk 0:03:01.4]} 4... dxc6 {[%clk 0:02:59]} 5. d3 {[%clk 0:03:01.4]}
5... Bg7 {[%clk 0:02:59]} 6. h3 {[%clk 0:03:01.7]} 6... Nf6 {[%clk 0:02:54.6]}
7. O-O {[%clk 0:03:01.1]} 7... Nd7 {[%clk 0:02:53.6]} 8. Nc3 {[%clk 0:03:00.1]}
8... b6 {[%clk 0:02:53.2]} 9. a4 {[%clk 0:02:59.5]} 9... a5 {[%clk 0:02:51.7]}
10. Be3 {[%clk 0:02:58.1]} 10... e5 {[%clk 0:02:51.4]} 11. Nd2 {[%clk
0:02:55.4]} 11... Nf8 {[%clk 0:02:50.3]} 12. f4 {[%clk 0:02:52.8]} 12... exf4
{[%clk 0:02:50]} 13. Bxf4 {[%clk 0:02:53.2]} 13... Ne6 {[%clk 0:02:50.5]} 14.
Be3 {[%clk 0:02:41]} 14... O-O {[%clk 0:02:47.5]} 15. Nf3 {[%clk 0:02:34.2]}
15... Nd4 {[%clk 0:02:44.3]} 16. Qd2 {[%clk 0:02:30.1]} 16... Be6 {[%clk
0:02:40.5]} 17. Bh6 {[%clk 0:02:27.6]} 17... Qd7 {[%clk 0:02:19.9]} 18. Bxg7
{[%clk 0:02:24.3]} 18... Kxg7 {[%clk 0:02:20.8]} 19. Ne2 {[%clk 0:02:01.2]}
19... Nxf3+ {[%clk 0:01:37.5]} 20. Rxf3 {[%clk 0:01:59.9]} 20... Rad8 {[%clk
0:01:36.6]} 21. Raf1 {[%clk 0:01:55.4]} 21... Qd6 {[%clk 0:01:30.1]} 22. Nf4
{[%clk 0:01:39.3]} 22... Qe5 {[%clk 0:01:25.7]} 23. Nxe6+ {[%clk 0:01:15.2]}
23... Qxe6 {[%clk 0:01:14.9]} 24. Qf4 {[%clk 0:01:06.4]} 24... Rd7 {[%clk
0:01:06.5]} 25. Qf6+ {[%clk 0:01:05.3]} 25... Qxf6 {[%clk 0:01:05.1]} 26. Rxf6
{[%clk 0:01:05.7]} 26... Rc8 {[%clk 0:01:02.8]} 27. e5 {[%clk 0:00:44.9]} 27...
Rcc7 {[%clk 0:00:59.3]} 28. e6 {[%clk 0:00:43.4]} 28... fxe6 {[%clk 0:00:50.1]}
29. Rxe6 {[%clk 0:00:42.8]} 29... Rd4 {[%clk 0:00:50]} 30. b3 {[%clk 0:00:39.9]}
30... b5 {[%clk 0:00:48]} 31. axb5 {[%clk 0:00:29.9]} 31... cxb5 {[%clk
0:00:48.9]} 32. Ra6 {[%clk 0:00:30]} 32... a4 {[%clk 0:00:47.8]} 33. bxa4 {[%clk
0:00:28.8]} 33... Rxa4 {[%clk 0:00:48.7]} 34. Rxa4 {[%clk 0:00:28]} 34... bxa4
{[%clk 0:00:49.1]} 35. Ra1 {[%clk 0:00:28.7]} 35... Ra7 {[%clk 0:00:49]} 36. Kf2
{[%clk 0:00:29]} 36... Kf6 {[%clk 0:00:49.1]} 37. Ke3 {[%clk 0:00:29.6]} 37...
Ke5 {[%clk 0:00:49.6]} 38. Ra3 {[%clk 0:00:28.1]} 38... Kd5 {[%clk 0:00:48]} 39.
c3 {[%clk 0:00:26.7]} 39... Kc6 {[%clk 0:00:47]} 40. c4 {[%clk 0:00:26]} 40...
Kb6 {[%clk 0:00:44.8]} 41. d4 {[%clk 0:00:23.1]} 41... cxd4+ {[%clk 0:00:42.1]}
42. Kxd4 {[%clk 0:00:23.4]} 42... Ka5 {[%clk 0:00:42.2]} 43. c5 {[%clk
0:00:20.7]} 43... Kb4 {[%clk 0:00:37.4]} 44. Ra1 {[%clk 0:00:18.5]} 44... Rd7+
{[%clk 0:00:35]} 45. Ke5 {[%clk 0:00:18.8]} 45... Rc7 {[%clk 0:00:32.1]} 46. Kd6
{[%clk 0:00:17.7]} 46... Rf7 {[%clk 0:00:23.4]} 47. c6 {[%clk 0:00:17.5]} 47...
Rf6+ {[%clk 0:00:20.9]} 48. Kd7 {[%clk 0:00:17.4]} 48... Rf7+ {[%clk 0:00:20.3]}
49. Kd8 {[%clk 0:00:16.4]} 49... Rf8+ {[%clk 0:00:18.5]} 50. Ke7 {[%clk
0:00:16.9]} 50... Rf2 {[%clk 0:00:17.3]} 51. c7 {[%clk 0:00:17.2]} 51... Re2+
{[%clk 0:00:17.3]} 52. Kd8 {[%clk 0:00:17.3]} 52... Rd2+ {[%clk 0:00:17.4]} 53.
Ke7 {[%clk 0:00:15.9]} 53... Re2+ {[%clk 0:00:16.8]} 54. Kd6 {[%clk 0:00:15.1]}
54... Rd2+ {[%clk 0:00:16.9]} 55. Kc6 {[%clk 0:00:15.2]} 55... Rc2+ {[%clk
0:00:05.1]} 56. Kb7 {[%clk 0:00:15.5]} 56... Kb3 {[%clk 0:00:04.2]} 57. c8=Q
{[%clk 0:00:14.8]} 57... Rxc8 {[%clk 0:00:04.3]} 58. Kxc8 {[%clk 0:00:15.4]}
58... a3 {[%clk 0:00:05]} 59. Kd7 {[%clk 0:00:15.5]} 59... Kb2 {[%clk
0:00:05.5]} 60. Rf1 {[%clk 0:00:13.8]} 60... a2 {[%clk 0:00:03.5]} 61. Ke6
{[%clk 0:00:14.3]} 61... h5 {[%clk 0:00:03.8]} 62. Kf6 {[%clk 0:00:14.1]} 62...
h4 {[%clk 0:00:03.7]} 63. Kxg6 {[%clk 0:00:14.1]} 1-0